{"text_format":"1","workbook":"xlsx","n_sheets":3,"sheets":["Contact_Shipping Info","Order Form","Drop Down Lists"],"not_rendered":{"charts":0,"images":1,"macros":1,"external_links":0,"defined_names":2,"comments":0,"pivot_tables":0},"unopened":[],"bounds":{"document_bytes":16777216,"sheet_cells":100000,"rows_first":2000,"rows_last":500,"rows_between":2000,"halvings":0,"cell_chars":16384,"cell_head_chars":4096},"cells_cut":0,"cells_raw":0,"read":"whole","date_system":"1900"}

{"sheet":"Contact_Shipping Info","index":0,"n_rows":26,"n_cols":8,"rows_kept":26,"cut":false,"hidden":false,"merged":[[25,0,25,7],[14,0,14,3],[15,0,15,3],[0,0,0,7],[1,0,1,7],[3,0,3,7],[4,0,4,7],[5,0,5,7],[14,6,14,7],[15,6,15,7],[23,0,24,7],[2,0,2,7],[18,6,18,7],[19,6,19,7]]}
["BLM GREAT BASIN INCIDENT CACHE - PUBLICATIONS ORDERING CUSTOMER INFORMATION"]
["EMAIL TO: blm_fa_gbk_pms@blm.gov "]
["(Do NOT include credit card number or expiration date in email, GBK will contact you after receiving forms)"]
["MAIL OR FAX TO: DOI-BLM Great Basin Incident Cache Supply Office"]
["3833 South Development Ave, Boise, ID 83705"]
["Fax: 208-387-5573 OR 208-387-5548 (DO NOT fax to both numbers)"]
["Shipping Information","**Orders will not be processed if the address provided is incomplete or P.O. Box is given**"]
["Agency/Company","Type of Address","Shipping Address                (No P.O. Box)","City","State","Zip Code","Shipping Contact","Contact Phone"]
[]
[]
["Billing Information"]
["Agency/Company Responsible for Payment","Moved or New Billing Address","Billing Address                ","City","State","Zip Code","Billing Contact","Contact Phone"]
[]
[]
["Agency /Company Purchase Order or Reference # (If Applicable)",null,null,null,null,null,"Payment Method"]
[]
[]
["Shipping Methods"]
["Shipping Method",null,"Requested By Date MM/DD/YYYY",null,null,null,"Email Address"]
[]
[]
["CREDIT CARD PAYMENT FORM:","https://www.nwcg.gov/sites/default/files/docs/gbk-credit-card-form-fillable.pdf"]
[]
["All required forms must be submitted within 3 business days. To avoid cancellation, please send all required documents to blm_fa_gbk_pms@blm.gov.  "]
[]
["*BLM Great Basin Incident Cache requires resubmittal of forms for required documents not received within 3 business days.*"]

{"sheet":"Order Form","index":1,"n_rows":202,"n_cols":7,"rows_kept":202,"cut":false,"hidden":false,"merged":[[201,0,201,6],[0,0,0,6],[199,0,199,6],[200,0,200,6],[1,0,1,6],[2,0,2,6],[3,0,3,6],[4,0,4,6],[5,0,5,1],[5,2,5,6]]}
["NWCG National Fire Equipment System Catalog - Part 2 : Publications, PMS 449-2     3/26/2026\n(Publications, Courses, Forms, Signs, Reference Materials)"]
["Full Catalog"]
[" If ordering NWCG IRPG, PMS 461, please use IRPG Only Workbook"]
["https://www.nwcg.gov/publications/449-2"]
["Information from the Contact_Shipping Info tab must be complete with all orders. \nAll orders are processed through the Great Basin Cache (GBK). Please contact the Supply Office with ordering and return questions: (208) 387-5104."]
["Full Catalog",null,"To use this order form:\n1. Enter quantities required\n2. The form will calculate subtotals for each item & the overall total.\n3. Use the \"Filter List\" button to the left to only see those items on the order.\n4. Print this filtered list.\n5. Fax to the Great Basin Cache (GBK)."]
["NFES","DESCRIPTION","UOM","QUANTITY","UNIT COST","SUBTOTAL","STANDARD PACK INFO"]
[86,"FORM -  INTERAGENCYHELICOPTER PASS/CARGO MANIFEST, OF-252","PD",0,6.99,{"$f":"SUM(D8*E8)","v":0},"100/PG"]
[177,"SIGN - DANGER NO SMOKING, POLYVINYL, 14\" X 11\"","EA",0,6.39,0]
[178,"SIGN - DIRECTION ARROW, WHITE TAG, 14\" X 11\"","EA",0,1.47,0]
[184,"SIGN - ADA PARKING, POLYVINYL, 14\" X 10\"","EA",0,12.03,0]
[185,"SIGN - PARKING, POLYVINYL, 14\" X 10\"","EA",0,6.5,0]
[186,"SIGN - NO PARKING, POLYVINYL, 14'' X 10''","EA",0,12.89,0]
[189,"SIGN - BLANK, WHITE TAG, 14\" X 11\"","EA",0,0.71,0]
[196,"SIGN - DANGER KEEP OUT, POLYVINYL, 14'' X 10''","EA",0,11.91,0]
[197,"SIGN - RESTROOM WOMEN, WHITE TAG, 12\" X 12\"","EA",0,4.32,0]
[370,"FORM - RADIO STATION LOG, 9120-1","PD",0,4.13,0]
[399,"FORM - MOTOR VEHICLE ACCIDENT REPORT, SF-91","PG",0,10.71,0]
[420,"FORM - EMERGENCY EQUIPMENT FUEL AND OIL ISSUE, OF-304","PD",0,7.41,0,"100/PG"]
[422,"FORM - EMERGENCY EQUIPMENT RENTAL USE ENVELOPE, OF-305 ","PG",0,21.86,0]
[448,"PAD-Writing, AD-777, DI-5A OR EQUAL","PD",0,0.92,0]
[543,"SIGN - CAUTION HELISPOT, POLYVINYL, 14'' X 10''","EA",0,7.91,0]
[725,"FORM - TAG, WARNING, FS 6400-17","EA",0,0.14000000000000001,0,"100/PG"]
[863,"FORM - EMERGENCY EQUIPMENT USE INVOICE, OF-286","PG",0,40.35,0,"50/BK"]
[866,"FORM - INCIDENT TIME REPORT, OF-288","PG",0,23.86,0,"50/PD"]
[871,"POSTER - NWCG HIGH PRESSURE PORTABLE PUMP INSTRUCTIONS, PMS 460","EA",0,6.4,0,"25/RO"]
[872,"FORM - EMERGENCY EQUIPMENT SHIFT TICKET, OF-297","PD",0,4.9000000000000004,0,"100/PG"]
[891,"FORM - CREW TIME REPORT, SF-261","BK",0,3.89,0]
[897,"CALCULATOR - FIRE STREAM NOZZLE DISCHARGE/FRICTION LOSS","EA",0,5.56,0]
[968,"GUIDE - NIRSC USER GUIDE","EA",0,89.11,0]
[1064,"FORM - INTERAGENCY HELICOPTER LOAD CALCULATION, OAS-67/FS 5700-17","PD",0,8.8000000000000007,0,"100/PG"]
[1077,"GUIDE - NWCG INCIDENT RESPONSE POCKET GUIDE (IRPG), PMS 461","EA",0,6,0]
[1098,"FORM - INCIDENT INJURY CASE FILE ENVELOPE, OF-313","PG",0,43.35,0,"100/PG"]
[1099,"FORM - INCIDENT CLAIMS CASE FILE ENVELOPE, OF-314","PG",0,123.23,0,"100/PG"]
[1120,"BINDER - SAFETY DATA SHEET, YELLOW, 1'', 3-RING, 8 1/2'' X 11''","EA",0,5.7,0]
[1159,"FORM - MOBILE FIRE WEATHER OBSERVER'S RECORD, OF-251","PD",0,5.6,0,"100/PG"]
[1173,"FORM - VEHICLE/HEAVY EQUIPMENT PRE-USE INSPECTION CHECKLIST, OF-296","BK",0,19.95,0,"25/BK"]
[1251,"FORM - INCIDENT DEMOBILIZATION VEHICLE SAFETY INSPECTION (ICS-212)","PG",0,27.62,0]
[1272,"FORM - NWCG TRAINING COURSE COMPLETION CERTIFICATE, PMS 921-1","PG",0,15.71,0,"100/PG"]
[1275,"GUIDE - WATER HANDLING EQUIPMENT, PMS 447-1","EA",0,33.409999999999997,0]
[1279,"GUIDE - NWCG SMOKE MANAGEMENT GUIDE FOR PRESCRIBED FIRE, PMS 420-3","EA",0,16.600000000000001,0]
[1336,"FORM - GENERAL MESSAGE (ICS-213)","PG",0,15.65,0,"100/PG"]
[1342,"FORM - RESOURCE STATUS CARD, HEADER, GREY (ICS-219-1)","PG",0,10.35,0,"100/PG"]
[1344,"FORM - RESOURCE STATUS CARD, CREW/TEAM, GREEN (ICS-219-2)","PG",0,7.96,0,"100/PG"]
[1345,"FORM - RESOURCE STATUS CARD, ENGINES, PINK (ICS-219-3)","PG",0,10.35,0,"100/PG"]
[1346,"FORM - RESOURCE STATUS CARD, HELICOPTER, BLUE (ICS-219-4)","PG",0,9.6,0,"100/PG"]
[1347,"FORM - RESOURCE STATUS CARD, PERSONNEL, WHITE (ICS-219-5)","PG",0,11.89,0,"100/PG"]
[1348,"FORM - RESOURCE STATUS CARD, FIXED-WING, ORANGE (ICS-219-6)","PG",0,13.61,0,"100/PG"]
[1349,"FORM - RESOURCE STATUS CARD, EQUIPMENT, YELLOW (, ICS-219-7)","PG",0,8.2799999999999994,0,"100/PG"]
[1350,"FORM - RESOURCE STATUS CARD, MISCELLANEOUS EQUIPMENT/TASK FORCES, TAN (ICS-219-8)","PG",0,10.72,0,"100/PG"]
[1352,"SORTER - CARD, \"T\"","EA",0,24.56,0]
[1354,"POSTER - NWCG FIRE ENVIRONMENT POSTER, PMS 439","EA",0,16.53,0]
[1373,"GUIDE - INTERAGENCY AVIATION USER POCKET GUIDE","EA",0,1.65,0]
[1374,"FORM - OPERATIONAL PLANNING WORKSHEET (ICS-215-WS), 36\" X 64\"","SH",0,34.39,0,"100/PG"]
[1472,"FORM - INTERAGENCY INCIDENT WAYBILL, OF-316","PG",0,18.079999999999998,0]
[1473,"FORM - INTERAGENCY INCIDENT WAYBILL, CONT, OF-316A","PG",0,23.33,0,"50/BK"]
[1483,"COURSE - S-358, COMMUNICATIONS UNIT LEADER, IG","EA",0,38.229999999999997,0]
[1486,"COURSE - S-358, COMMUNICATIONS UNIT LEADER, SW","EA",0,10.08,0]
[1490,"COURSE - S-354, FACILITIES UNIT LEADER, IG","EA",0,24.67,0]
[1492,"COURSE - S-354, FACILITIES UNIT LEADER, SW","EA",0,16.55,0]
[1501,"COURSE - S-372, HELICOPTER MANAGEMENT, IG","EA",0,58.56,{"$f":"SUM(D61*E61)","v":0}]
[1503,"COURSE - S-372, HELICOPTER MANAGEMENT, SW","EA",0,11.96,0]
[1514,"GUIDE - GUIA DE RESPUESTA DE INCIDENTE DE BOLSILLO (IRPG, SPANISH), PMS 461 ES","EA",0,10.029999999999999,0]
[1528,"FORM - INCIDENT QUALIFICATION CARD, PMS 310-3","PG",0,30.05,0,"100/PG"]
[1576,"FORM - INCIDENT PERSONNEL PERFORMANCE RATING (ICS-225)","PG",0,31.36,0,"50/PD"]
[1581,"COURSE - P-301, FIRE PREVENTION EDUCATION 2, IG","EA",0,69.709999999999994,0]
[1584,"COURSE - P-301, FIRE PREVENTION EDUCATION 2, SW","EA",0,18.84,0]
[1585,"COURSE - S-378, AERIAL SUPERVISION, IG","EA",0,36,0]
[1587,"COURSE - D-312, AIRCRAFT DISPATCHER, IG","EA",0,35.44,0]
[1589,"COURSE - D-312, AIRCRAFT DISPATCHER, SW","EA",0,22.03,0]
[1596,"GUIDE - FITNESS & WORK CAPACITY, PMS 304-2","EA",0,8.4600000000000009,0]
[1597,"COURSE - S-404, SAFETY OFFICER, IG","EA",0,70.72,0]
[1599,"COURSE - S-404, SAFETY OFFICER, SW","EA",0,34.08,0]
[1600,"COURSE - S-445, TRAINING SPECIALIST, IG","EA",0,54.23,0]
[1602,"COURSE - S-445, TRAINING SPECIALIST, SW","EA",0,22.35,0]
[1874,"HANDBOOK - GUIDE TO WILDLAND FIRE ORIGIN AND CAUSE DETERMINATION, PMS 412","EA",0,68.94,0]
[1921,"COURSE - S-355, GROUND SUPPORT UNIT LEADER, IG","EA",0,43.99,0]
[1922,"COURSE - S-355, GROUND SUPPORT UNIT LEADER, SW","EA",0,10.07,0]
[1931,"COURSE - S-261, APPLIED I/A INCIDENT BUSINESS MANAGEMENT, IG","EA",0,46.03,0]
[1933,"COURSE - S-261, APPLIED I/A INCIDENT BUSINESS MANAGEMENT, SW","EA",0,17.399999999999999,0]
[1957,"COURSE - M-410, FACILITATIVE INSTRUCTOR, IG","EA",0,58.16,0]
[1959,"COURSE - M-410, FACILITATIVE INSTRUCTOR, SW","EA",0,16.27,0]
[1960,"FORM - INTERAGENCY MOBILE FOOD SERVICE DAILY MEAL ORDER/INVOICE, 1276-A ","PG",0,7.6,0,"100/PG"]
[1961,"FORM - INTERAGENCY DAILY SHOWER ORDER/INVOICE, 1276-C","PG",0,8.19,0,"100/PG"]
[1962,"COURSE - S-440, PLANNING SECTION CHIEF, IG","EA",0,62.08,0]
[1963,"COURSE - S-440, PLANNING SECTION CHIEF, SW","EA",0,7.27,0]
[1974,"FORM - INTERAGENCY MOBILE SHOWER FACILITIES PERFORMANCE EVAL, 1276-F","PG",0,8.19,0]
[1975,"FORM - INTERAGENCY MOBILE FOOD SERVICE PERFORMANCE EVAL, 1276-E","PG",0,7.23,0,"50/PD"]
[1976,"POSTER - FIRE WEATHER CLOUD CHART, SMALL, PMS 438","EA",0,3.66,0,"100/PG"]
[1977,"POSTER - FIRE WEATHER CLOUD CHART, WALL SIZE, PMS 438","EA",0,10,0,"100/PG"]
[1980,"COURSE - S-262, INCIDENT CONTRACT PROJECT INSPECTOR, IG","EA",0,29.88,0]
[1981,"COURSE - S-262, INCIDENT CONTRACT PROJECT INSPECTOR, SW","EA",0,19.72,0]
[2098,"FORM - RESOURCE STATUS CARD, ACCT PROP ASSIGN RECORD, WHITE (ICS-219-9)","PG",0,8.44,0,"100/PG"]
[2099,"FORM - ACCOUNTABLE PROPERTY ASSIGNMENT RECORD/TRANSFER TAG, WHITE (ICS-219-WF)","PG",0,9.44,{"$f":"SUM(D94*E94)","v":0}]
[2112,"COURSE - S-270, BASIC AIR OPERATIONS, SW","EA",0,10.66,0]
[2113,"FORM - COMMERCIAL RENTAL/SERVICE ENVELOPE","PG",0,33.28,0,"100/PG"]
[2114,"FORM - BUYING TEAM INCIDENT WAYBILL, PMS 902-1","PG",0,32.85,0,"40/PD"]
[2143,"COURSE - S-470, AIR OPERATIONS BRANCH DIRECTOR, IG ","EA",0,65.19,0]
[2145,"COURSE - S-470, AIR OPERATIONS BRANCH DIRECTOR, SW","EA",0,35.71,0]
[2147,"DOT CHART 17 - HAZARDOUS MATERIALS MARKING, LABELING & PLACARDING GUIDE","EA",0,0.92,0,"100/PG"]
[2150,"GUIDE - DOT, EMERGENCY RESPONSE","EA",0,23.29,0]
[2186,"COURSE - S-330, TASK FORCE/STRIKE TEAM LEADER, SW","EA",0,16.87,0]
[2231,"RULER - 10 SCALE, CLEAR PLASTIC, C-THRU, #W-37","EA",0,4.72,0]
[2232,"COMPASS - PROTRACTOR, PLASTIC, CLEAR 1-360 DEGREES, C-THRU #255","EA",0,2.48,0,"100/PG"]
[2290,"COURSE - S-357, FOOD UNIT LEADER, IG","EA",0,29.23,0]
[2292,"COURSE - S-357, FOOD UNIT LEADER, SW","EA",0,35.659999999999997,0]
[2297,"COURSE - S-357, FOOD UNIT LEADER, FIELD GUIDE","EA",0,7.93,0]
[2388,"DECAL - 10/18 (STANDARD FIREFIGHTING ORDERS/WATCH OUT SITUATIONS)","PG",0,11.89,0]
[2389,"CARD - 10/18 (STANDARD FIREFIGHTING ORDERS/WATCH OUT SITUATIONS)","PG",0,25,0]
[2397,"COURSE - DECAL - LCES","PG",0,15.4,0]
[2440,"COURSE - S-215, FIRE OPERATIONS IN THE WILDLAND/URBAN INTERFACE, IG","EA",0,48.99,0]
[2442,"COURSE - S-215, FIRE OPERATIONS IN THE WILDLAND/URBAN INTERFACE, SW","EA",0,9.65,0]
[2475,"COURSE - RX-410, SMOKE MANAGEMENT TECHNIQUES, IG","EA",0,115.91,0,"100/PG"]
[2476,"COURSE - RX-410, SMOKE MANAGEMENT TECHNIQUES, SW","EA",0,58.15,0,"100/PG"]
[2478,"COURSE - RX-310, INTRODUCTION TO FIRE EFFECTS, IG","EA",0,41.94,0]
[2479,"COURSE - RX-310, INTRODUCTION TO FIRE EFFECTS, SW","EA",0,14.47,0]
[2636,"NWCG Guide to Fire Behavior Assessment, PMS 437-1","EA",0,26.33,0]
[2638,"POSTER - NWCG 10 AND 18 POSTER, (24\" X 36\"), PMS 110-18","EA",0,8.11,0]
[2640,"POSTER - NWCG 10 Y 8 CARTEL, (24\" X 36\"), PMS 110-18 ES","EA",0,6.27,0]
[2641,"NWCG Guide for Wildland Fire Modules, PMS 431","EA",0,17.100000000000001,0]
[2642,"CARD - NWCG SMOKE AND ROADWAY SAFETY POCKET CARD, PMS 477-1","EA",0,24.78,0,"25/PG"]
[2646,"DECAL - FIRE AND COVID-19 BRIEFING CHECKLIST (FOR IRPG)","PG",0,6.03,0]
[2647,"COURSE - S-258, INCIDENT COMMUNICATIONS TECHNICIAN, IG","EA",0,56.29,0]
[2648,"COURSE - S-258, INCIDENT COMMUNICATIONS TECHNICIAN, SW","EA",0,10.76,0]
[2657,"FORM - AIRCRAFT DISPATCH, NIFC9400-31","PD",0,6.96,0,"50/PD"]
[2671,"COURSE - S-273, SINGLE ENGINE AIR TANKER MANAGER, IG","EA",0,63.19,0]
[2674,"COURSE - S-273, SINGLE ENGINE AIR TANKER MANAGER, SW","EA",0,18.2,0]
[2678,"SHELTER - PRACTICE, COMPLETE, M-2002","EA",0,193.92,0]
[2688,"COURSE - S-236, HEAVY EQUIPMENT BOSS (SINGLE RESOURCE), IG","EA",0,47.73,0]
[2690,"COURSE - S-236, HEAVY EQUIPMENT BOSS (SINGLE RESOURCE), SW","EA",0,12.56,0]
[2696,"COURSE - M-410, FACILITATIVE INSTRUCTOR, REFERENCE (GREGORIC STYLE DELINEATOR)","EA",0,12.01,0]
[2718,"FORM - CREW PERFORMANCE RATING (ICS 244), SINGLE PAGE","PG",0,35.99,0,"100/PG"]
[2752,"SIGN - FACILITIES UNIT, WHITE TAG, 14\" X 11\"","EA",0,1.31,0]
[2754,"SIGN - CHECK-IN, WHITE TAG, 14\" X 11\"","EA",0,1.1599999999999999,{"$f":"SUM(D134*E134)","v":0}]
[2756,"SIGN - COMMUNICATIONS UNIT, WHITE TAG, 14\" X 11\"","EA",0,1.28,0]
[2760,"SIGN - DOCUMENTATION UNIT, WHITE TAG, 14\" X 11\"","EA",0,1.1499999999999999,0]
[2762,"SIGN - FINANCE, WHITE TAG, 14\" X 11\"","EA",0,1.1599999999999999,0]
[2764,"SIGN - GROUND SUPPORT UNIT, WHITE TAG, 14\" X 11\"","EA",0,1.39,0]
[2765,"SIGN - CAUTION HELIBASE, POLYVINYL, 14'' X 11''","EA",0,5.4,0]
[2768,"SIGN - INFORMATION OFFICER, WHITE TAG, 14\" X 11\"","EA",0,1.4,0]
[2770,"SIGN - LOGISTICS, WHITE TAG, 14\" X 11\"","EA",0,1.1200000000000001,0]
[2771,"SIGN - FIRST AID, POLYVINYL, 14\" x 11\"","EA",0,8.07,0]
[2773,"SIGN - PLANNING, WHITE TAG, 14\" X 11\"","EA",0,1.1499999999999999,0]
[2774,"SIGN - RESOURCE UNIT, WHITE TAG, 14\" X 11\"","EA",0,1.1100000000000001,0]
[2775,"SIGN - SAFETY OFFICER, WHITE TAG, 14\" X 11\"","EA",0,1.08,0]
[2776,"SIGN - SECURITY, WHITE TAG, 14\" x 11\"","EA",0,1.36,0]
[2777,"SIGN - SITUATION UNIT, WHITE TAG, 14\" X 11\"","EA",0,1.1200000000000001,0]
[2779,"SIGN - SUPPLY UNIT, WHITE TAG, 14\" X 11\"","EA",0,1.1200000000000001,0]
[2781,"SIGN - TIME RECORDER, WHITE TAG, 14\" X 11\"","EA",0,1.1499999999999999,0]
[2785,"COURSE - S-330, TASK FORCE/STRIKE TEAM LEADER, MAP (MARRE IAP EXERCISE)","EA",0,53.29,0]
[2794,"COURSE - D-311, INITIAL ATTACK DISPATCHER, IG","EA",0,78.91,0]
[2795,"COURSE - D-311, INITIAL ATTACK DISPATCHER, SW","EA",0,34.31,0]
[2797,"COURSE - D-311, INITIAL ATTACK DISPATCHER, MAP (ALASKA SIMULATION)","EA",0,121.8,0]
[2799,"SHELTER - PRACTICE, LARGE, COMPLETE, M2002","EA",0,146.63999999999999,0]
[2816,"COURSE - FI-210, WILDLAND FIRE ORIGIN & CAUSE DETERMINATION, IG","EA",0,62.87,0]
[2817,"COURSE - FI-210, WILDLAND FIRE ORIGIN & CAUSE DETERMINATION, SW","EA",0,24.41,0]
[2830,"COURSE - S-430, OPERATIONS SECTION CHIEF, IG","EA",0,51.24,0]
[2831,"COURSE - S-430, OPERATIONS SECTION CHIEF, SW","EA",0,34.409999999999997,0]
[2834,"COURSE - S-248, STATUS/CHECK-IN RECORDER, IG","EA",0,52.23,0]
[2835,"COURSE - S-248, STATUS/CHECK-IN RECORDER, SW","EA",0,23.52,0]
[2865,"GUIDE - BASIC LAND NAVIGATION, PMS 475","EA",0,18.45,0]
[2866,"COURSE - S-371, HELIBASE MANAGER, HELIBASE DISPLAY BOARD (PART 1)","SH",0,13.24,0]
[2867,"COURSE - S-371, HELIBASE MANAGER, HELIBASE DISPLAY BOARD (PART 2)","SH",0,13.31,0]
[2874,"COURSE - S-339, DIVISION/GROUP SUPERVISOR, IG ","EA",0,58.3,0]
[2875,"COURSE - S-339, DIVISION/GROUP SUPERVISOR, SW","EA",0,12.62,0]
[2880,"COURSE - P-101, FIRE PREVENTION EDUCATION 1, IG","EA",0,83.26,0]
[2881,"COURSE - P-101, FIRE PREVENTION EDUCATION 1, SW","EA",0,7.03,0]
[2885,"COURSE - S-371, HELIBASE MANAGER, IG","EA",0,53.39,0]
[2886,"COURSE - S-371, HELIBASE MANAGER, SW","EA",0,11.03,0]
[2889,"GUIDE - LEADING IN THE WILDLAND FIRE SERVICE, PMS 494-2","EA",0,2.67,0]
[2903,"COURSE - S-200, INITIAL ATTACK INCIDENT COMMANDER (TYPE 4), IG ","EA",0,32.99,0]
[2904,"COURSE - S-200, INITIAL ATTACK INCIDENT COMMANDER (TYPE 4), SW","EA",0,5.33,0]
[2906,"INCIDENT COMMANDER'S ORGANIZER, PMS 206","EA",0,12.22,0]
[2912,"COURSE - S-203, INTRODUCTION TO INCIDENT INFORMATION, IG","EA",0,52.99,0]
[2915,"COURSE - S-203, INTRODUCTION TO INCIDENT INFORMATION, SW","EA",0,28.22,0]
[2917,"COURSE - S-300, EXTENDED ATTACK INCIDENT COMMANDER (TYPE 3), IG","EA",0,55.58,0]
[2919,"COURSE - S-300, EXTENDED ATTACK INCIDENT COMMANDER (TYPE 3), SW","EA",0,8.35,{"$f":"SUM(D177*E177)","v":0}]
[2920,"COURSE - S-375, AIR SUPPORT GROUP SUPERVISOR, IG","EA",0,48.31,0]
[2921,"COURSE - S-375, AIR SUPPORT GROUP SUPERVISOR, SW","EA",0,7.44,0]
[2923,"COURSE - S-375, AIR SUPPORT GROUP SUPERVISOR, FIELD REFERENCE","EA",0,13.87,0]
[2924,"COURSE - D-310, EXPANDED DISPATCH SUPPORT DISPATCHER, IG","EA",0,35.11,0]
[2926,"COURSE - D-310, EXPANDED DISPATCH SUPPORT DISPATCHER, SW","EA",0,20.309999999999999,0]
[2931,"COURSE - S-390, INTRO TO WILDLAND FIRE BEHAVIOR CALCULATIONS, SW","EA",0,28.52,0]
[2934,"COURSE - S-245, DISPLAY PROCESSOR, IG","EA",0,35.4,0]
[2935,"COURSE - S-245, DISPLAY PROCESSOR, SW","EA",0,21.83,0]
[2950,"COURSE - P-410, FIRE PREVENTION EDUCATION TEAM LEADER, IG ","EA",0,42.04,0]
[2951,"COURSE - P-410, FIRE PREVENTION EDUCATION TEAM LEADER, SW","EA",0,12.19,0]
[2960,"COURSE - S-244, FIELD OBSERVER, IG","EA",0,34.31,0]
[2961,"COURSE - S-244, FIELD OBSERVER, SW","EA",0,9.4499999999999993,0]
[2968,"COURSE - S-340, HUMAN RESOURCE SPECIALIST, IG","EA",0,88.03,0]
[2970,"COURSE - S-340, HUMAN RESOURCE SPECIALIST, FIELD REFERENCE","EA",0,30.28,0]
[2983,"COURSE - L-180, HUMAN FACTORS IN THE WILDLAND FIRE SERVICE, IG","EA",0,30.36,0]
[2986,"COURSE - L-180, HUMAN FACTORS IN THE WILDLAND FIRE SERVICE, SW","EA",0,4.2699999999999996,0]
[2994,"COURSE - L-280, FOLLOWERSHIP TO LEADERSHIP, SW","EA",0,3.78,0]
[3026,"COURSE - S-211, PORTABLE PUMPS AND WATER USE, IG","EA",0,45.27,0]
[3168,"SIGN - CAUTION ROAD CLOSED, POLYVINYL, 14'' X 10''","EA",0,9.5299999999999994,0]
[8839,"GUIDE - NWCG WILDLAND URBAN INTERFACE MITIGATION FIELD GUIDE, PMS 053","EA",0,16.98,0]
[null,"SUBTOTAL DUE WITHOUT SHIPPING COSTS",null,null,null,{"$f":"SUBTOTAL(9,F8:F197)","v":0}]
[]
[" If ordering NWCG IRPG, PMS 461, and/or Red Book only, please use IRPG and Red Book Only Workbook"]
["https://www.nwcg.gov/publications/449-2"]
["All orders are processed through the Great Basin Cache (GBK).  Please contact the Supply Office with questions: (208) 387-5104."]

{"sheet":"Drop Down Lists","index":2,"n_rows":4,"n_cols":7,"rows_kept":4,"cut":false,"hidden":true,"merged":[]}
["Type of Address",null,"Moved or New Billing Address",null,"Shipping Method",null,"Payment Method"]
["Business",null,"No",null,"Best Means",null,"Bill"]
["Residential",null,"Yes",null,"Overnight",null,"Credit Card"]
[null,null,null,null,"Will Pick Up"]